[Event "Live Chess"]
[Site "Chess.com"]
[Date "2023.05.20"]
[Round "-"]
[White "profpirate4"]
[Black "wot-not"]
[Result "0-1"]
[WhiteElo "1067"]
[BlackElo "1484"]
[TimeControl "300"]
[EndTime "12:35:32 PDT"]
[Termination "wot-not won by checkmate"]

1. d4 {[%clk 0:04:59]} 1... Nf6 {[%clk 0:04:58.9]} 2. c4 {[%clk 0:04:57.9]} 2...
c5 {[%clk 0:04:58.2]} 3. d5 {[%clk 0:04:56.5]} 3... d6 {[%clk 0:04:57.3]} 4. Nc3
{[%clk 0:04:55.5]} 4... e5 {[%clk 0:04:56.8]} 5. Bg5 {[%clk 0:04:48.2]} 5... Be7
{[%clk 0:04:56.2]} 6. Bxf6 {[%clk 0:04:45]} 6... Bxf6 {[%clk 0:04:55.3]} 7. e4
{[%clk 0:04:43.4]} 7... O-O {[%clk 0:04:54.1]} 8. Nf3 {[%clk 0:04:41]} 8... Nd7
{[%clk 0:04:53.2]} 9. Be2 {[%clk 0:04:37.7]} 9... Re8 {[%clk 0:04:52.2]} 10. O-O
{[%clk 0:04:36]} 10... Nf8 {[%clk 0:04:51.5]} 11. Nd2 {[%clk 0:04:27]} 11... Ng6
{[%clk 0:04:50.5]} 12. f3 {[%clk 0:04:16.1]} 12... Nf4 {[%clk 0:04:47.7]} 13. a3
{[%clk 0:04:04.1]} 13... g6 {[%clk 0:04:46.4]} 14. b4 {[%clk 0:03:57.6]} 14...
b6 {[%clk 0:04:45.1]} 15. Ra2 {[%clk 0:03:54.1]} 15... Bg7 {[%clk 0:04:42.4]}
16. Qc2 {[%clk 0:03:48.7]} 16... Qg5 {[%clk 0:04:40.9]} 17. Rf2 {[%clk
0:03:39.1]} 17... Nh3+ {[%clk 0:04:38.3]} 18. Kf1 {[%clk 0:03:33.9]} 18... Nxf2
{[%clk 0:04:37.6]} 19. Kxf2 {[%clk 0:03:32.9]} 19... Qh4+ {[%clk 0:04:35.5]} 20.
Kg1 {[%clk 0:03:29]} 20... Bh6 {[%clk 0:04:29.8]} 21. Nf1 {[%clk 0:03:25.7]}
21... Qg5 {[%clk 0:04:20.5]} 22. Ng3 {[%clk 0:03:21.2]} 22... Qf6 {[%clk
0:04:04.1]} 23. Qa4 {[%clk 0:03:17.7]} 23... Be3+ {[%clk 0:03:59.6]} 24. Kf1
{[%clk 0:03:11.8]} 24... Bb7 {[%clk 0:03:49]} 25. bxc5 {[%clk 0:03:06.8]} 25...
bxc5 {[%clk 0:03:45.3]} 26. Qd7 {[%clk 0:03:04.9]} 26... Rab8 {[%clk 0:03:41.9]}
27. Nb5 {[%clk 0:02:36]} 27... Qh4 {[%clk 0:03:26.2]} 28. Nxd6 {[%clk
0:01:49.8]} 28... Re7 {[%clk 0:03:05.4]} 29. Qh3 {[%clk 0:01:37.9]} 29... Qf4
{[%clk 0:02:40]} 30. Rb2 {[%clk 0:01:16.2]} 30... Bd4 {[%clk 0:02:24]} 31. Rb1
{[%clk 0:01:11]} 31... Qe3 {[%clk 0:02:16.3]} 32. Ke1 {[%clk 0:01:00]} 32...
Qg1+ {[%clk 0:01:49.3]} 33. Bf1 {[%clk 0:00:28]} 33... Qe3+ {[%clk 0:01:35.7]}
34. Ne2 {[%clk 0:00:14.6]} 34... Bc3+ {[%clk 0:01:26.6]} 35. Kd1 {[%clk
0:00:10.3]} 35... Qd2# {[%clk 0:01:25.1]} 0-1

[Event "Live Chess"]
[Site "Chess.com"]
[Date "2023.05.20"]
[Round "-"]
[White "JohanKjeldahl"]
[Black "SupremeTactician"]
[Result "0-1"]
[WhiteElo "1790"]
[BlackElo "2381"]
[TimeControl "300"]
[EndTime "12:35:34 PDT"]
[Termination "SupremeTactician won by resignation"]

1. c4 {[%clk 0:04:57]} 1... c5 {[%clk 0:04:58.1]} 2. Nc3 {[%clk 0:04:55.4]} 2...
Nc6 {[%clk 0:04:57.7]} 3. Nf3 {[%clk 0:04:53.9]} 3... g6 {[%clk 0:04:57.3]} 4.
d4 {[%clk 0:04:52.6]} 4... cxd4 {[%clk 0:04:56.1]} 5. Nxd4 {[%clk 0:04:51.5]}
5... Bg7 {[%clk 0:04:55.2]} 6. Nc2 {[%clk 0:04:49.4]} 6... Nf6 {[%clk
0:04:52.5]} 7. e4 {[%clk 0:04:47.4]} 7... d6 {[%clk 0:04:50.9]} 8. f3 {[%clk
0:04:43.3]} 8... Nd7 {[%clk 0:04:43.3]} 9. Be3 {[%clk 0:04:40.4]} 9... Qa5
{[%clk 0:04:38.4]} 10. Qd2 {[%clk 0:04:35.5]} 10... O-O {[%clk 0:04:35.7]} 11.
Be2 {[%clk 0:04:33.9]} 11... Nde5 {[%clk 0:04:14.6]} 12. Nd5 {[%clk 0:04:24.4]}
12... Qxd2+ {[%clk 0:04:12.9]} 13. Bxd2 {[%clk 0:04:21.7]} 13... Bd7 {[%clk
0:04:00.5]} 14. Bc3 {[%clk 0:04:19.5]} 14... f5 {[%clk 0:03:52]} 15. O-O {[%clk
0:04:16.1]} 15... fxe4 {[%clk 0:03:29.1]} 16. fxe4 {[%clk 0:04:12.2]} 16...
Rxf1+ {[%clk 0:03:29]} 17. Rxf1 {[%clk 0:04:09.9]} 17... Rf8 {[%clk 0:03:28.9]}
18. Rxf8+ {[%clk 0:04:05.4]} 18... Kxf8 {[%clk 0:03:28.8]} 19. h3 {[%clk
0:03:55.4]} 19... Kf7 {[%clk 0:03:07.9]} 20. Kf2 {[%clk 0:03:49.4]} 20... a6
{[%clk 0:02:11.1]} 21. Nd4 {[%clk 0:03:39.8]} 21... Nxd4 {[%clk 0:02:06.2]} 22.
Bxd4 {[%clk 0:03:38.5]} 22... Nd3+ {[%clk 0:02:05.7]} 23. Bxd3 {[%clk
0:03:36.3]} 23... Bxd4+ {[%clk 0:02:05.2]} 24. Kf3 {[%clk 0:03:32]} 24... Bxb2
{[%clk 0:02:04.8]} 25. g4 {[%clk 0:03:22.6]} 25... h5 {[%clk 0:01:49.1]} 26.
gxh5 {[%clk 0:03:19.5]} 26... gxh5 {[%clk 0:01:49]} 27. h4 {[%clk 0:03:15.7]}
27... Bf6 {[%clk 0:01:32.1]} 28. Kg3 {[%clk 0:03:12.6]} 28... Be5+ {[%clk
0:01:28.6]} 29. Nf4 {[%clk 0:03:11]} 29... Bxf4+ {[%clk 0:01:27]} 30. Kxf4
{[%clk 0:03:08.6]} 30... Kf6 {[%clk 0:01:26.9]} 31. Be2 {[%clk 0:03:05.6]} 31...
Be8 {[%clk 0:01:25.8]} 32. Bf3 {[%clk 0:02:41.6]} 32... Bg6 {[%clk 0:01:19.3]}
33. Ke3 {[%clk 0:02:34.6]} 33... Ke5 {[%clk 0:01:16.6]} 34. Bg2 {[%clk
0:02:26.1]} 34... Bf7 {[%clk 0:01:15.4]} 35. Bf1 {[%clk 0:02:23.5]} 35... Bg6
{[%clk 0:01:14.4]} 36. Bd3 {[%clk 0:02:21]} 36... e6 {[%clk 0:01:09.8]} 37. a3
{[%clk 0:02:13]} 37... d5 {[%clk 0:01:06.9]} 38. cxd5 {[%clk 0:02:12]} 38...
exd5 {[%clk 0:01:06.2]} 39. exd5 {[%clk 0:02:10.5]} 39... Bxd3 {[%clk
0:01:05.1]} 40. Kxd3 {[%clk 0:02:09.4]} 40... Kxd5 {[%clk 0:01:04.4]} 41. Ke3
{[%clk 0:02:05.1]} 41... Ke5 {[%clk 0:00:57.8]} 42. Kf3 {[%clk 0:02:03.9]} 42...
b5 {[%clk 0:00:56.2]} 43. Ke3 {[%clk 0:01:57.9]} 43... a5 {[%clk 0:00:55.4]} 0-1

[Event "Live Chess"]
[Site "Chess.com"]
[Date "2023.05.20"]
[Round "-"]
[White "manthanit"]
[Black "AdamOwls"]
[Result "0-1"]
[WhiteElo "994"]
[BlackElo "1958"]
[TimeControl "300"]
[EndTime "12:35:35 PDT"]
[Termination "AdamOwls won by checkmate"]

1. e4 {[%clk 0:04:59]} 1... c5 {[%clk 0:04:57.8]} 2. g3 {[%clk 0:04:57.2]} 2...
e6 {[%clk 0:04:54.6]} 3. Bg2 {[%clk 0:04:56.7]} 3... Nc6 {[%clk 0:04:52.2]} 4.
a3 {[%clk 0:04:54.4]} 4... Qc7 {[%clk 0:04:48.6]} 5. Nf3 {[%clk 0:04:44.8]} 5...
Nf6 {[%clk 0:04:46.7]} 6. d3 {[%clk 0:04:26.7]} 6... Be7 {[%clk 0:04:43.3]} 7.
O-O {[%clk 0:04:25.2]} 7... O-O {[%clk 0:04:41.3]} 8. Re1 {[%clk 0:04:08.8]}
8... a6 {[%clk 0:04:32.7]} 9. Bg5 {[%clk 0:04:06.6]} 9... b5 {[%clk 0:04:31]}
10. e5 {[%clk 0:04:05.2]} 10... Nd5 {[%clk 0:04:28.6]} 11. Bxe7 {[%clk
0:04:01.1]} 11... Ndxe7 {[%clk 0:04:28.5]} 12. c3 {[%clk 0:03:52.9]} 12... d6
{[%clk 0:04:22.9]} 13. d4 {[%clk 0:03:49.4]} 13... dxe5 {[%clk 0:04:18.4]} 14.
Nxe5 {[%clk 0:03:43.1]} 14... Bb7 {[%clk 0:04:15.2]} 15. dxc5 {[%clk 0:03:37.9]}
15... Nxe5 {[%clk 0:04:12.4]} 16. Bxb7 {[%clk 0:03:34.8]} 16... Qxb7 {[%clk
0:04:01.4]} 17. Rxe5 {[%clk 0:03:33]} 17... Ng6 {[%clk 0:04:00.3]} 18. Re1
{[%clk 0:03:10.3]} 18... Rad8 {[%clk 0:03:58.1]} 19. Qh5 {[%clk 0:03:08]} 19...
Rd5 {[%clk 0:03:54.4]} 20. Qf3 {[%clk 0:03:03.6]} 20... Qc7 {[%clk 0:03:53.4]}
21. b4 {[%clk 0:02:58.1]} 21... Rfd8 {[%clk 0:03:52.2]} 22. a4 {[%clk
0:02:46.2]} 22... Ne5 {[%clk 0:03:49.4]} 23. Qh5 {[%clk 0:02:06]} 23... bxa4
{[%clk 0:03:46.9]} 24. Na3 {[%clk 0:02:04.6]} 24... Nd3 {[%clk 0:03:39.8]} 25.
Red1 {[%clk 0:01:59.8]} 25... Rxh5 {[%clk 0:03:37.1]} 26. Rd2 {[%clk 0:01:38.5]}
26... Rhd5 {[%clk 0:03:28.8]} 27. Rad1 {[%clk 0:01:36.8]} 27... Nf4 {[%clk
0:03:25.9]} 28. Rxd5 {[%clk 0:01:31.7]} 28... Nxd5 {[%clk 0:03:22.9]} 29. Nc4
{[%clk 0:01:26.8]} 29... Nxc3 {[%clk 0:03:19.9]} 30. Rxd8+ {[%clk 0:01:19.3]}
30... Qxd8 {[%clk 0:03:19.8]} 31. Nd6 {[%clk 0:01:18.8]} 31... a3 {[%clk
0:03:16.6]} 32. Kf1 {[%clk 0:01:18.5]} 32... a2 {[%clk 0:03:14.8]} 33. Ke1
{[%clk 0:01:17.8]} 33... a1=Q+ {[%clk 0:03:13.7]} 34. Kd2 {[%clk 0:01:17.3]}
34... Qb2+ {[%clk 0:03:11.4]} 35. Ke3 {[%clk 0:01:16]} 35... Nb5 {[%clk
0:03:09.8]} 36. Kf3 {[%clk 0:01:13.3]} 36... Nxd6 {[%clk 0:03:08]} 37. cxd6
{[%clk 0:01:12.7]} 37... Qxd6 {[%clk 0:03:07]} 38. Kg2 {[%clk 0:01:11.7]} 38...
Qd5+ {[%clk 0:03:05.5]} 39. Kg1 {[%clk 0:01:09.9]} 39... Qc1# {[%clk 0:03:04.1]}
0-1

[Event "Live Chess"]
[Site "Chess.com"]
[Date "2023.05.20"]
[Round "-"]
[White "martynstanley"]
[Black "OleksiyJr1"]
[Result "0-1"]
[WhiteElo "970"]
[BlackElo "942"]
[TimeControl "300"]
[EndTime "12:35:55 PDT"]
[Termination "OleksiyJr1 won by checkmate"]

1. d4 {[%clk 0:04:59.6]} 1... Nf6 {[%clk 0:04:57.9]} 2. e3 {[%clk 0:04:59.1]}
2... c6 {[%clk 0:04:57]} 3. Bd3 {[%clk 0:04:56.7]} 3... d5 {[%clk 0:04:45.3]} 4.
c3 {[%clk 0:04:55.8]} 4... e6 {[%clk 0:04:44.1]} 5. f4 {[%clk 0:04:54.8]} 5...
Bd6 {[%clk 0:04:41.3]} 6. Nf3 {[%clk 0:04:54]} 6... O-O {[%clk 0:04:38.7]} 7.
O-O {[%clk 0:04:53]} 7... Nbd7 {[%clk 0:04:36.2]} 8. Ne5 {[%clk 0:04:52.2]} 8...
Nxe5 {[%clk 0:04:33.9]} 9. fxe5 {[%clk 0:04:50.3]} 9... Ne4 {[%clk 0:04:33.8]}
10. exd6 {[%clk 0:04:48.5]} 10... Qxd6 {[%clk 0:04:33]} 11. Nd2 {[%clk
0:04:47.7]} 11... Nxd2 {[%clk 0:04:31.6]} 12. Bxd2 {[%clk 0:04:46.9]} 12... e5
{[%clk 0:04:30.8]} 13. Bxh7+ {[%clk 0:04:43.4]} 13... Kxh7 {[%clk 0:04:27.9]}
14. Qh5+ {[%clk 0:04:42.1]} 14... Kg8 {[%clk 0:04:27.4]} 15. e4 {[%clk
0:04:41.2]} 15... dxe4 {[%clk 0:04:23.2]} 16. Bh6 {[%clk 0:04:39.1]} 16... Qxh6
{[%clk 0:04:21.5]} 17. Qxh6 {[%clk 0:04:38.4]} 17... gxh6 {[%clk 0:04:20.9]} 18.
Rfe1 {[%clk 0:04:37.7]} 18... Bf5 {[%clk 0:04:18.3]} 19. dxe5 {[%clk 0:04:36.3]}
19... Rfe8 {[%clk 0:04:17.2]} 20. Re2 {[%clk 0:04:35]} 20... Rxe5 {[%clk
0:04:15.8]} 21. Rae1 {[%clk 0:04:33.5]} 21... Rd8 {[%clk 0:04:14.1]} 22. h3
{[%clk 0:04:32.8]} 22... Rd3 {[%clk 0:04:06.2]} 23. g4 {[%clk 0:04:31.3]} 23...
Bg6 {[%clk 0:04:03.7]} 24. Kf2 {[%clk 0:04:25.3]} 24... h5 {[%clk 0:03:55.9]}
25. gxh5 {[%clk 0:04:24]} 25... Bxh5 {[%clk 0:03:55.8]} 26. Re3 {[%clk
0:04:22.3]} 26... Rd2+ {[%clk 0:03:53.6]} 27. Kg3 {[%clk 0:04:20.4]} 27... Rg5+
{[%clk 0:03:49]} 28. Kh4 {[%clk 0:04:18.7]} 28... Re5 {[%clk 0:03:27.9]} 29. Kg3
{[%clk 0:04:09.6]} 29... Bg6 {[%clk 0:03:25.2]} 30. h4 {[%clk 0:04:07.8]} 30...
Rxb2 {[%clk 0:03:21.8]} 31. a4 {[%clk 0:04:06.3]} 31... Ra2 {[%clk 0:03:19.2]}
32. Kf4 {[%clk 0:04:05.1]} 32... Rxa4 {[%clk 0:03:17.7]} 33. Kg4 {[%clk
0:04:00.8]} 33... Rc4 {[%clk 0:03:16.3]} 34. h5 {[%clk 0:03:59.8]} 34... Bh7
{[%clk 0:03:14.1]} 35. h6 {[%clk 0:03:55.2]} 35... f5+ {[%clk 0:03:04.6]} 36.
Kf4 {[%clk 0:03:53.2]} 36... Re6 {[%clk 0:03:03.1]} 37. Rg1+ {[%clk 0:03:51.9]}
37... Kh8 {[%clk 0:03:00.9]} 38. Rg2 {[%clk 0:03:47]} 38... Rxh6 {[%clk
0:02:58.6]} 39. Rd2 {[%clk 0:03:44.5]} 39... Rh4+ {[%clk 0:02:57.3]} 40. Ke5
{[%clk 0:03:42.4]} 40... Rc5+ {[%clk 0:02:55.6]} 41. Kd6 {[%clk 0:03:40.9]}
41... Rd5+ {[%clk 0:02:50.6]} 42. Rxd5 {[%clk 0:03:37.3]} 42... cxd5 {[%clk
0:02:50.5]} 43. Kxd5 {[%clk 0:03:36.5]} 43... Bg8+ {[%clk 0:02:50.4]} 44. Ke5
{[%clk 0:03:35.1]} 44... Bh7 {[%clk 0:02:38.8]} 45. c4 {[%clk 0:03:31.4]} 45...
Rh6 {[%clk 0:02:36.5]} 46. c5 {[%clk 0:03:29.5]} 46... Rc6 {[%clk 0:02:36.1]}
47. Rc3 {[%clk 0:03:28.3]} 47... b6 {[%clk 0:02:35.1]} 48. Kf4 {[%clk
0:03:27.3]} 48... Rxc5 {[%clk 0:02:33.6]} 49. Rxc5 {[%clk 0:03:26.2]} 49... bxc5
{[%clk 0:02:33.5]} 50. Ke3 {[%clk 0:03:25.6]} 50... a5 {[%clk 0:02:32.9]} 51.
Kd2 {[%clk 0:03:24.9]} 51... a4 {[%clk 0:02:32.5]} 52. Kc3 {[%clk 0:03:24.2]}
52... f4 {[%clk 0:02:32]} 53. Kd2 {[%clk 0:03:23]} 53... f3 {[%clk 0:02:31.4]}
54. Ke3 {[%clk 0:03:21.2]} 54... a3 {[%clk 0:02:30.8]} 55. Kf4 {[%clk
0:03:20.6]} 55... f2 {[%clk 0:02:29.8]} 56. Ke3 {[%clk 0:03:19.8]} 56... f1=Q
{[%clk 0:02:27.3]} 57. Kd2 {[%clk 0:03:18.4]} 57... Qd3+ {[%clk 0:02:24.7]} 58.
Kc1 {[%clk 0:03:17.4]} 58... Qe2 {[%clk 0:02:23.3]} 59. Kb1 {[%clk 0:03:15.9]}
59... a2+ {[%clk 0:02:22.7]} 60. Ka1 {[%clk 0:03:14.8]} 60... Qd1+ {[%clk
0:02:13.9]} 61. Kxa2 {[%clk 0:03:13.1]} 61... c4 {[%clk 0:01:55.5]} 62. Kb2
{[%clk 0:03:11.7]} 62... c3+ {[%clk 0:01:54.5]} 63. Kxc3 {[%clk 0:03:10.9]}
63... Qd3+ {[%clk 0:01:52.5]} 64. Kb2 {[%clk 0:03:09.6]} 64... e3 {[%clk
0:01:50.5]} 65. Kc1 {[%clk 0:03:08.4]} 65... e2 {[%clk 0:01:49.1]} 66. Kb2
{[%clk 0:03:07.5]} 66... e1=Q {[%clk 0:01:45.4]} 67. Ka2 {[%clk 0:03:04.5]}
67... Qee2+ {[%clk 0:01:45.3]} 68. Ka1 {[%clk 0:03:00.9]} 68... Qdd1# {[%clk
0:01:45.2]} 0-1

[Event "Live Chess"]
[Site "Chess.com"]
[Date "2023.05.20"]
[Round "-"]
[White "HoarseyHorsey"]
[Black "Richardallis"]
[Result "0-1"]
[WhiteElo "1392"]
[BlackElo "1763"]
[TimeControl "300"]
[EndTime "12:36:02 PDT"]
[Termination "Richardallis won by resignation"]

1. d4 {[%clk 0:04:59.2]} 1... c5 {[%clk 0:04:58.3]} 2. d5 {[%clk 0:04:58.1]}
2... d6 {[%clk 0:04:57.1]} 3. c4 {[%clk 0:04:57.5]} 3... e5 {[%clk 0:04:56.4]}
4. e4 {[%clk 0:04:54.4]} 4... f5 {[%clk 0:04:55]} 5. Nc3 {[%clk 0:04:52.4]} 5...
Nf6 {[%clk 0:04:53.7]} 6. Bd3 {[%clk 0:04:50.6]} 6... f4 {[%clk 0:04:51.9]} 7.
g3 {[%clk 0:04:47.9]} 7... fxg3 {[%clk 0:04:50.7]} 8. hxg3 {[%clk 0:04:47.3]}
8... g6 {[%clk 0:04:49.1]} 9. f4 {[%clk 0:04:45.8]} 9... Nbd7 {[%clk 0:04:45.8]}
10. Nf3 {[%clk 0:04:40.4]} 10... Qe7 {[%clk 0:04:44.1]} 11. Bd2 {[%clk
0:04:19.8]} 11... a6 {[%clk 0:04:41.4]} 12. Qe2 {[%clk 0:04:16.6]} 12... Bg7
{[%clk 0:04:37.9]} 13. O-O-O {[%clk 0:04:15.2]} 13... O-O {[%clk 0:04:35.4]} 14.
Rdg1 {[%clk 0:04:08.5]} 14... Ng4 {[%clk 0:04:29.9]} 15. Nh2 {[%clk 0:04:01.3]}
15... Nxh2 {[%clk 0:04:25.4]} 16. Rxh2 {[%clk 0:04:01.2]} 16... Nf6 {[%clk
0:04:17.2]} 17. f5 {[%clk 0:03:52.2]} 17... Bd7 {[%clk 0:04:00]} 18. fxg6 {[%clk
0:03:48.4]} 18... hxg6 {[%clk 0:03:58.9]} 19. Bh6 {[%clk 0:03:42.6]} 19... Ng4
{[%clk 0:03:53.1]} 20. Bxg7 {[%clk 0:03:31.4]} 20... Qxg7 {[%clk 0:03:49.7]} 21.
Rh4 {[%clk 0:03:25.7]} 21... Rf2 {[%clk 0:03:46.8]} 22. Qe1 {[%clk 0:03:08.3]}
22... Raf8 {[%clk 0:03:43.8]} 23. Rgh1 {[%clk 0:02:57.4]} 23... Rg2 {[%clk
0:03:32.7]} 24. Rf1 {[%clk 0:02:32.6]} 24... Rxf1 {[%clk 0:03:29]} 25. Bxf1
{[%clk 0:02:31.2]} 25... Rf2 {[%clk 0:03:27.1]} 26. Rxg4 {[%clk 0:02:24.3]}
26... Rxf1 {[%clk 0:03:24.1]} 27. Qxf1 {[%clk 0:02:12.3]} 27... Bxg4 {[%clk
0:03:21.9]} 28. Qf2 {[%clk 0:01:47.7]} 28... Qh6+ {[%clk 0:03:19.3]} 29. Kc2
{[%clk 0:01:46.2]} 29... Qh1 {[%clk 0:03:16.5]} 30. Kb3 {[%clk 0:01:29.4]} 30...
Bd1+ {[%clk 0:03:12.2]} 31. Nxd1 {[%clk 0:01:28.3]} 31... Qxd1+ {[%clk
0:03:10.6]} 32. Kc3 {[%clk 0:01:26.8]} 32... Qd4+ {[%clk 0:03:06.4]} 33. Qxd4
{[%clk 0:01:25.5]} 33... exd4+ {[%clk 0:03:05.9]} 34. Kd3 {[%clk 0:01:21.8]}
34... Kf7 {[%clk 0:03:04.3]} 35. g4 {[%clk 0:01:11.7]} 35... Kf6 {[%clk
0:03:00.8]} 36. a3 {[%clk 0:01:08.7]} 36... a5 {[%clk 0:02:59.6]} 37. b4 {[%clk
0:01:07.4]} 0-1

[Event "Live Chess"]
[Site "Chess.com"]
[Date "2023.05.20"]
[Round "-"]
[White "Conradical12"]
[Black "atunnacl"]
[Result "0-1"]
[WhiteElo "1571"]
[BlackElo "1866"]
[TimeControl "300"]
[EndTime "12:36:12 PDT"]
[Termination "atunnacl won by resignation"]

1. e4 {[%clk 0:04:57]} 1... c5 {[%clk 0:04:57.5]} 2. Nf3 {[%clk 0:04:53.6]} 2...
d6 {[%clk 0:04:55.4]} 3. d4 {[%clk 0:04:52.9]} 3... cxd4 {[%clk 0:04:53.1]} 4.
Nxd4 {[%clk 0:04:52.8]} 4... Nf6 {[%clk 0:04:51.5]} 5. Nc3 {[%clk 0:04:52.2]}
5... a6 {[%clk 0:04:50.2]} 6. Bf4 {[%clk 0:04:51.7]} 6... e5 {[%clk 0:04:46.4]}
7. Nd5 {[%clk 0:04:29.5]} 7... Nxd5 {[%clk 0:04:34.9]} 8. exd5 {[%clk
0:04:27.4]} 8... exf4 {[%clk 0:04:33.6]} 9. Bc4 {[%clk 0:04:25.4]} 9... Be7
{[%clk 0:04:22.2]} 10. Qd3 {[%clk 0:04:22.4]} 10... O-O {[%clk 0:04:14.9]} 11.
O-O-O {[%clk 0:04:20]} 0-1

[Event "Live Chess"]
[Site "Chess.com"]
[Date "2023.05.20"]
[Round "-"]
[White "azimchess2019"]
[Black "ameetghasi100"]
[Result "0-1"]
[WhiteElo "1362"]
[BlackElo "2703"]
[TimeControl "300"]
[EndTime "12:36:19 PDT"]
[Termination "ameetghasi100 won by resignation"]

1. d4 {[%clk 0:04:53.9]} 1... c5 {[%clk 0:04:59.9]} 2. d5 {[%clk 0:04:50.5]}
2... e6 {[%clk 0:04:59.8]} 3. dxe6 {[%clk 0:04:48.6]} 3... fxe6 {[%clk
0:04:57.8]} 4. Nc3 {[%clk 0:04:43.1]} 4... Nc6 {[%clk 0:04:57.1]} 5. e4 {[%clk
0:04:37.1]} 5... Nf6 {[%clk 0:04:55.8]} 6. Nf3 {[%clk 0:04:33.7]} 6... d6 {[%clk
0:04:54.8]} 7. Bb5 {[%clk 0:04:32.7]} 7... Bd7 {[%clk 0:04:53.2]} 8. O-O {[%clk
0:04:28.1]} 8... Qc7 {[%clk 0:04:49.9]} 9. Bf4 {[%clk 0:04:26.4]} 9... Nh5
{[%clk 0:04:45.5]} 10. Bg3 {[%clk 0:04:14]} 10... a6 {[%clk 0:04:42.4]} 11. Bc4
{[%clk 0:04:11.2]} 11... Be7 {[%clk 0:04:39]} 12. a3 {[%clk 0:04:03.4]} 12... b5
{[%clk 0:04:37.2]} 13. Be2 {[%clk 0:04:00.9]} 13... O-O {[%clk 0:04:35.3]} 0-1

[Event "Live Chess"]
[Site "Chess.com"]
[Date "2023.05.20"]
[Round "-"]
[White "Leonid_Starozhilov"]
[Black "bristolunichess"]
[Result "1-0"]
[WhiteElo "2644"]
[BlackElo "1773"]
[TimeControl "300"]
[EndTime "12:36:21 PDT"]
[Termination "Leonid_Starozhilov won by checkmate"]

1. e4 {[%clk 0:04:59.1]} 1... e6 {[%clk 0:04:59]} 2. d4 {[%clk 0:04:57.9]} 2...
d5 {[%clk 0:04:52.9]} 3. Nc3 {[%clk 0:04:57.8]} 3... Nf6 {[%clk 0:04:49.1]} 4.
Bg5 {[%clk 0:04:56.4]} 4... Be7 {[%clk 0:04:47.3]} 5. e5 {[%clk 0:04:55.3]} 5...
Nfd7 {[%clk 0:04:46.9]} 6. h4 {[%clk 0:04:53.7]} 6... a6 {[%clk 0:04:32.9]} 7.
Nf3 {[%clk 0:04:47.2]} 7... c5 {[%clk 0:04:26.9]} 8. dxc5 {[%clk 0:04:44.1]}
8... Nxc5 {[%clk 0:04:24.7]} 9. Bd3 {[%clk 0:04:42.6]} 9... Nc6 {[%clk
0:04:11.6]} 10. Qe2 {[%clk 0:04:33]} 10... Bd7 {[%clk 0:03:54.6]} 11. a3 {[%clk
0:04:07.3]} 11... b5 {[%clk 0:03:48.2]} 12. O-O {[%clk 0:04:01.4]} 12... b4
{[%clk 0:03:39.4]} 13. axb4 {[%clk 0:03:59.6]} 13... Nxb4 {[%clk 0:03:39.3]} 14.
Rfd1 {[%clk 0:03:38.4]} 14... h6 {[%clk 0:02:47.9]} 15. Be3 {[%clk 0:03:26.8]}
15... Ncxd3 {[%clk 0:02:41.7]} 16. cxd3 {[%clk 0:03:24.6]} 16... Bxh4 {[%clk
0:02:39.5]} 17. Nxh4 {[%clk 0:03:17.9]} 17... Qxh4 {[%clk 0:02:39.4]} 18. Bc5
{[%clk 0:03:14.6]} 18... Nc6 {[%clk 0:02:21.4]} 19. Ra4 {[%clk 0:03:12.8]} 19...
Qg5 {[%clk 0:02:07.7]} 20. Bd6 {[%clk 0:02:54]} 20... h5 {[%clk 0:02:00.2]} 21.
Rda1 {[%clk 0:02:49]} 21... Nxe5 {[%clk 0:01:49.5]} 22. Bxe5 {[%clk 0:02:43.9]}
22... Bxa4 {[%clk 0:01:47.7]} 23. Rxa4 {[%clk 0:02:43.3]} 23... O-O {[%clk
0:01:42.2]} 24. d4 {[%clk 0:02:35.1]} 24... f6 {[%clk 0:01:31]} 25. Bd6 {[%clk
0:02:33.3]} 25... Rfd8 {[%clk 0:01:28.1]} 26. Qxe6+ {[%clk 0:02:30.7]} 26... Kh7
{[%clk 0:01:24.7]} 27. Bg3 {[%clk 0:02:23.5]} 27... Qc1+ {[%clk 0:01:18.5]} 28.
Kh2 {[%clk 0:02:21.5]} 28... Qxb2 {[%clk 0:01:17.2]} 29. Nxd5 {[%clk 0:02:16.5]}
29... Qc2 {[%clk 0:01:09.1]} 30. Ra5 {[%clk 0:02:12.7]} 30... Re8 {[%clk
0:00:58.7]} 31. Nxf6+ {[%clk 0:02:08.9]} 31... gxf6 {[%clk 0:00:53.9]} 32. Qf7+
{[%clk 0:02:07.9]} 32... Kh8 {[%clk 0:00:45]} 33. Rxh5+ {[%clk 0:02:07.8]} 33...
Qh7 {[%clk 0:00:44.3]} 34. Rxh7# {[%clk 0:02:06.3]} 1-0

[Event "Live Chess"]
[Site "Chess.com"]
[Date "2023.05.20"]
[Round "-"]
[White "LanceMaster23"]
[Black "LutherSullivan"]
[Result "0-1"]
[WhiteElo "1859"]
[BlackElo "1968"]
[TimeControl "300"]
[EndTime "12:36:30 PDT"]
[Termination "LutherSullivan won by resignation"]

1. Nf3 {[%clk 0:04:59.1]} 1... Nf6 {[%clk 0:04:58.7]} 2. d4 {[%clk 0:04:58.3]}
2... d5 {[%clk 0:04:57.6]} 3. Bf4 {[%clk 0:04:57.8]} 3... c5 {[%clk 0:04:56.1]}
4. e3 {[%clk 0:04:57.4]} 4... Nc6 {[%clk 0:04:54.1]} 5. Be2 {[%clk 0:04:55.9]}
5... Qb6 {[%clk 0:04:48.6]} 6. b3 {[%clk 0:04:48.4]} 6... cxd4 {[%clk
0:04:41.9]} 7. exd4 {[%clk 0:04:38.9]} 7... Bf5 {[%clk 0:04:40.4]} 8. O-O {[%clk
0:04:29]} 8... e6 {[%clk 0:04:36.9]} 9. c4 {[%clk 0:04:27.3]} 9... dxc4 {[%clk
0:04:25]} 10. bxc4 {[%clk 0:03:45.2]} 10... Rd8 {[%clk 0:04:14.4]} 11. Nc3
{[%clk 0:03:09.3]} 11... Nxd4 {[%clk 0:04:01.1]} 12. Nxd4 {[%clk 0:03:06.8]}
12... Rxd4 {[%clk 0:03:58.2]} 13. Qa4+ {[%clk 0:03:01.5]} 13... Qc6 {[%clk
0:03:52.7]} 14. Qxc6+ {[%clk 0:02:51.3]} 14... bxc6 {[%clk 0:03:50.7]} 15. Be3
{[%clk 0:02:50]} 15... Rd7 {[%clk 0:03:23.3]} 16. Bf3 {[%clk 0:02:37.9]} 16...
Bb4 {[%clk 0:03:09.8]} 17. Bxc6 {[%clk 0:02:19.4]} 17... Bxc3 {[%clk 0:03:08.4]}
18. Rad1 {[%clk 0:02:11.1]} 18... e5 {[%clk 0:02:43.3]} 19. Bxa7 {[%clk
0:02:02.9]} 19... O-O {[%clk 0:02:40]} 20. Bxd7 {[%clk 0:02:01]} 20... Bxd7
{[%clk 0:02:37.2]} 21. Bc5 {[%clk 0:01:07.8]} 21... Rc8 {[%clk 0:02:35.5]} 22.
Be7 {[%clk 0:01:06.7]} 22... Bd4 {[%clk 0:02:31.2]} 23. Rc1 {[%clk 0:00:56.9]}
23... Be6 {[%clk 0:02:22.9]} 24. c5 {[%clk 0:00:55.2]} 24... Bxa2 {[%clk
0:02:18.7]} 25. c6 {[%clk 0:00:37]} 25... Nd5 {[%clk 0:02:09.1]} 26. Bd6 {[%clk
0:00:34.3]} 26... Nf4 {[%clk 0:02:06.4]} 27. Rc2 {[%clk 0:00:22.6]} 27... Bb3
{[%clk 0:01:55.5]} 28. Rd2 {[%clk 0:00:20.2]} 28... f6 {[%clk 0:01:31.1]} 29.
Rb1 {[%clk 0:00:17.4]} 29... Be6 {[%clk 0:01:07.4]} 30. c7 {[%clk 0:00:16.6]}
30... Kf7 {[%clk 0:01:04.8]} 31. Rb8 {[%clk 0:00:15.2]} 31... Ke8 {[%clk
0:01:01.7]} 32. Rxd4 {[%clk 0:00:10.7]} 32... Ne2+ {[%clk 0:00:59.9]} 33. Kf1
{[%clk 0:00:08.7]} 33... Nxd4 {[%clk 0:00:58.9]} 0-1